fUST/lending_fUST_20250918
["ID","MTS","AMOUNT","RATE_DAILY","PERIOD"]
[386066464,1758208251963,-480.0,0.00024498,3]
[386066465,1758208251972,-480.0,0.00024498,3]
[386066466,1758208251982,-480.0,0.00024498,3]
[386066467,1758208251992,-1002.14,0.00024498,3]
[386066468,1758208252001,-480.0,0.00024498,3]
[386066469,1758208252011,-480.0,0.00024498,3]
[386066470,1758208252021,-480.0,0.00024498,3]
[386066471,1758208252031,-480.0,0.00024498,3]
[386066472,1758208252040,-484.91503361,0.00024498,3]
[386066473,1758208252050,-480.0,0.00024498,3]
[386066474,1758208252060,-507.53,0.00024498,3]
[386066475,1758208252069,-1484.25,0.00024498,3]
[386066476,1758208252079,-480.0,0.00024498,3]
[386066477,1758208252088,-480.0,0.00024498,3]
[386066478,1758208252098,-480.0,0.00024498,3]
[386066479,1758208252108,-2615.93,0.00024499,3]
[386066480,1758208252117,-4342.64238901,0.00024499,2]
[386066481,1758208252127,-480.0,0.00024499,3]
[386066482,1758208252136,-480.0,0.00024499,3]
[386066483,1758208252146,-480.0,0.00024499,3]
[386066484,1758208252156,-480.0,0.000245,3]
[386066485,1758208252165,-480.0,0.000245,3]
[386066486,1758208252175,-480.0,0.00024502,3]
[386066487,1758208252184,-480.0,0.00024502,3]
[386066488,1758208252196,-200.0,0.0002451,7]
[386066489,1758208252205,-150.0,0.00024562,2]
[386066490,1758208252215,-150.0,0.00024562,2]
[386066491,1758208252224,-1000.0,0.00024568,2]
[386066492,1758208252233,-1500.0,0.00024568,2]
[386066493,1758208252243,-500.0,0.00024568,2]
[386066494,1758208252252,-1500.0,0.00024568,2]
[386066495,1758208252262,-1539.24311429,0.00024616,2]
[386066496,1758208252272,-1515.1512475,0.00024616,2]
[386066497,1758208252282,-2000.0,0.00024616,2]
[386066498,1758208252292,-1006.2363446,0.00024619,2]
[386066499,1758208252301,-896.02441012,0.00024668,2]
[386066500,1758208252372,-1458.87985584,0.00024671,2]
[386066501,1758208252382,-175.80704784,0.00024674,2]
[386066502,1758208252392,-168.0,0.00024683,2]
[386066503,1758208252403,-168.0,0.00024746,2]
[386066504,1758208252412,-480.0,0.00024769,3]
[386066505,1758208252422,-516.5,0.00024769,3]
[386066506,1758208252432,-480.0,0.0002477,3]
[386066507,1758208252441,-480.0,0.0002477,3]
[386066508,1758208252452,-480.0,0.0002477,3]
[386066509,1758208252462,-480.0,0.0002477,3]
[386066510,1758208252472,-480.0,0.00024771,3]
[386066511,1758208252482,-480.0,0.00024771,3]
[386066512,1758208252493,-480.0,0.00024772,3]
[386066513,1758208252508,-480.0,0.00024772,3]
[386066514,1758208252517,-480.0,0.00024772,3]
[386066515,1758208252527,-480.0,0.00024772,3]
[386066516,1758208252537,-1002.14,0.00024772,3]
[386066517,1758208252546,-480.0,0.00024772,3]
[386066518,1758208252556,-573.3081771,0.00024772,3]
[386066519,1758208252565,-480.0,0.00024772,3]
[386066520,1758208252575,-480.0,0.00024772,3]
[386066521,1758208252586,-480.0,0.00024772,3]
[386066522,1758208252595,-507.53,0.00024772,3]
[386066523,1758208252605,-1484.25,0.00024772,3]
[386066524,1758208252615,-480.0,0.00024772,3]
[386066525,1758208252625,-480.0,0.00024772,3]
[386066526,1758208252634,-480.0,0.00024772,3]
[386066527,1758208252644,-2615.93,0.00024773,3]
[386066528,1758208252654,-238.81,0.00024773,3]
[386066529,1758208252664,-480.0,0.00024773,3]
[386066530,1758208252674,-480.0,0.00024773,3]
[386066531,1758208252683,-480.0,0.00024774,3]
[386066532,1758208252693,-331.15,0.00024774,3]
[386066533,1758208252702,-480.0,0.00024776,3]
[386066534,1758208252711,-480.0,0.00024776,3]
[386066535,1758208252721,-941.0,0.0002481,2]
[386066536,1758208252730,-2000.0,0.00024816,2]
[386066537,1758208252740,-1363.11128932,0.00024816,2]
[386066538,1758208252750,-460.0,0.00024844,2]
[386066539,1758208252760,-500.0,0.00024873,2]
[386066540,1758208252769,-500.0,0.00024873,2]
[386066541,1758208252778,-500.0,0.00024873,2]
[386066542,1758208252788,-150.0,0.00024873,2]
[386066543,1758208252797,-500.0,0.00024873,2]
[386066544,1758208252807,-500.0,0.00024873,2]
[386066545,1758208252817,-810.67797789,0.00024896,2]
[386066546,1758208252827,-151.0,0.000249,7]
[386066547,1758208252836,-151.0,0.000249,7]
[386066548,1758208252846,-151.0,0.000249,7]
[386066549,1758208252855,-153.492164,0.000249,7]
[386066550,1758208252865,-194.332647,0.000249,7]
[386066551,1758208252874,-151.0,0.000249,7]
[386066552,1758208252884,-153.537344,0.000249,7]
[386066553,1758208252900,-151.0,0.000249,7]
[386066554,1758208252920,-629172.213759,0.000249,2]
[386066555,1758208252936,-151.0,0.000249,7]
[386066556,1758208252953,-151.0,0.000249,7]
[386066557,1758208252970,-163.049832,0.000249,7]
[386066558,1758208252988,-151.0,0.000249,7]
[386066559,1758208253004,-151.0,0.000249,7]
[386066560,1758208253020,-151.0,0.000249,7]
[386066561,1758208253037,-155.046698,0.000249,7]
[386066562,1758208253051,-152.022354,0.000249,7]
[386066563,1758208253065,-1680.0,0.00024924,2]
[386066564,1758208253081,-168.0,0.00024941,2]
[386066565,1758208253099,-12142.68220235,0.00024947,2]
[386066566,1758208253117,-168.0,0.00024958,2]
[386066567,1758208253131,-267.863,0.00024964,8]
[386066568,1758208253144,-503.82640437,0.00024973,2]
[386066569,1758208253162,-1000.0,0.00024973,2]
[386066570,1758208253176,-1000.0,0.00024973,2]
[386066571,1758208253191,-502.54845032,0.00024973,2]
[386066572,1758208253206,-747.52443193,0.00024973,2]
[386066573,1758208253220,-1000.0,0.00024973,2]
[386066574,1758208253233,-1000.0,0.00024973,2]
[386066575,1758208253248,-1002.59968779,0.00024973,2]
[386066576,1758208253262,-500.0,0.00024973,2]
[386066577,1758208253275,-500.0,0.00024973,2]
[386066578,1758208253288,-193.34991738,0.00024973,2]
[386066579,1758208253302,-500.0,0.00024973,2]
[386066580,1758208253316,-1000.0,0.00024985,2]
[386066581,1758208253329,-500.49642979,0.00024985,2]
[386066582,1758208253343,-501.40611253,0.00024985,2]
[386066583,1758208253357,-500.0,0.00024985,2]
[386066584,1758208253371,-1000.0,0.00024985,2]
[386066585,1758208253384,-1004.62007717,0.00024985,2]
[386066586,1758208253397,-399.26834952,0.00024985,2]
[386066587,1758208253411,-984.43807732,0.00024985,2]
[386066588,1758208253423,-480.0,0.00025043,3]
[386066589,1758208253437,-516.5,0.00025043,3]
[386066590,1758208253450,-480.0,0.00025044,3]
[386066591,1758208253463,-480.0,0.00025044,3]
[386066592,1758208253478,-480.0,0.00025044,3]
[386066593,1758208253492,-480.0,0.00025044,3]
[386066594,1758208253510,-480.0,0.00025045,3]
[386066595,1758208253524,-480.0,0.00025045,3]
[386066596,1758208253537,-480.0,0.00025046,3]
[386066597,1758208253552,-480.0,0.00025046,3]
[386066598,1758208253565,-480.0,0.00025046,3]
[386066599,1758208253578,-480.0,0.00025046,3]
[386066600,1758208253592,-1002.14,0.00025046,3]
[386066601,1758208253606,-480.0,0.00025046,3]
[386066602,1758208253616,-507.53,0.00025046,3]
[386066603,1758208253626,-1484.25,0.00025046,3]
[386066604,1758208253635,-480.0,0.00025046,3]
[386066605,1758208253743,-480.0,0.00025046,3]
[386066606,1758208253756,-480.0,0.00025046,3]
[386066607,1758208253766,-2615.93,0.00025047,3]
[386066608,1758208253776,-480.0,0.00025047,3]
[386066609,1758208253786,-480.0,0.00025047,3]
[386066610,1758208253795,-480.0,0.00025048,3]
[386066611,1758208253805,-480.0,0.0002505,3]
[386066612,1758208253815,-480.0,0.0002505,3]
[386066613,1758208253824,-200.0,0.000251,7]
[386066614,1758208253834,-2000.0,0.00025116,2]
[386066615,1758208253843,-2000.0,0.00025116,2]
[386066616,1758208253853,-2500.0,0.00025164,2]
[386066617,1758208253862,-168.0,0.000252,2]
[386066618,1758208253872,-1562.06,0.000252,7]
[386066619,1758208253881,-168.0,0.00025219,2]
[386066620,1758208253890,-480.0,0.00025317,3]
[386066621,1758208253900,-516.5,0.00025317,3]
[386066622,1758208253909,-480.0,0.00025318,3]
[386066623,1758208253918,-480.0,0.00025318,3]
[386066624,1758208253927,-480.0,0.00025318,3]
[386066625,1758208253937,-480.0,0.00025318,3]
[386066626,1758208253947,-480.0,0.00025319,3]
[386066627,1758208253956,-480.0,0.00025319,3]
[386066628,1758208253966,-480.0,0.0002532,3]
[386066629,1758208253975,-299.13,0.0002532,3]
[386066630,1758208253985,-480.0,0.0002532,3]
[386066631,1758208253994,-480.0,0.0002532,3]
[386066632,1758208254005,-1002.14,0.0002532,3]
[386066633,1758208254015,-480.0,0.0002532,3]
[386066634,1758208254025,-507.53,0.0002532,3]
[386066635,1758208254034,-1484.25,0.0002532,3]
[386066636,1758208254043,-480.0,0.0002532,3]
[386066637,1758208254053,-480.0,0.0002532,3]
[386066638,1758208254062,-210.46,0.0002532,3]
[386066639,1758208254072,-2615.93,0.00025321,3]
[386066640,1758208254082,-480.0,0.00025321,3]
[386066641,1758208254092,-480.0,0.00025321,3]
[386066642,1758208254102,-480.0,0.00025322,3]
[386066643,1758208254111,-480.0,0.00025324,3]
[386066644,1758208254121,-168.0,0.00025333,2]
[386066645,1758208254131,-168.0,0.00025339,2]
[386066646,1758208254141,-500.0,0.00025364,2]
[386066647,1758208254150,-560.0,0.00025392,2]
[386066648,1758208254159,-168.0,0.00025397,2]
[386066649,1758208254169,-1000.0,0.00025421,2]
[386066650,1758208254179,-1023.51453299,0.00025421,2]
[386066651,1758208254189,-300.0,0.00025421,2]
[386066652,1758208254198,-1000.0,0.00025421,2]
[386066653,1758208254208,-1002.49020776,0.00025421,2]
[386066654,1758208254217,-168.0,0.00025456,2]
[386066655,1758208254226,-160.0,0.000255,7]
[386066656,1758208254236,-200.0,0.0002551,7]
[386066657,1758208254245,-1500.0,0.00025521,2]
[386066658,1758208254255,-1500.0,0.00025521,2]
[386066659,1758208254265,-1503.87396356,0.00025521,2]
[386066660,1758208254275,-745.17995536,0.00025521,2]
[386066661,1758208254284,-503.49402217,0.00025533,2]
[386066662,1758208254293,-12500.0,0.0002555,7]
[386066663,1758208254303,-160.0,0.0002555,7]
[386066664,1758208254312,-233.39271932,0.0002555,7]
[386066665,1758208254322,-847.96496735,0.0002555,7]
[386066666,1758208254331,-217.95274215,0.0002555,7]
[386066667,1758208254341,-12500.0,0.00025558,7]
[386066668,1758208254350,-12500.0,0.00025567,7]
[386066669,1758208254360,-500.0,0.00025573,2]
[386066670,1758208254370,-158.38050054,0.00025573,2]
[386066671,1758208254379,-12500.0,0.00025576,7]
[386066672,1758208254390,-480.0,0.00025591,3]
[386066673,1758208254399,-516.5,0.00025591,3]
[386066674,1758208254409,-480.0,0.00025592,3]
[386066675,1758208254418,-492.90619398,0.00025592,3]
[386066676,1758208254427,-480.0,0.00025592,3]
[386066677,1758208254437,-319.53,0.00025592,3]
[386066678,1758208254447,-297.87,0.00025593,3]
[386066679,1758208254456,-480.0,0.00025593,3]
[386066680,1758208254466,-480.0,0.00025594,3]
[386066681,1758208254475,-480.0,0.00025594,3]
[386066682,1758208254485,-480.0,0.00025594,3]
[386066683,1758208254496,-1002.14,0.00025594,3]
[386066684,1758208254508,-480.0,0.00025594,3]
[386066685,1758208254518,-507.53,0.00025594,3]
[386066686,1758208254527,-1484.25,0.00025594,3]
[386066687,1758208254537,-480.0,0.00025594,3]
[386066688,1758208254546,-560.08,0.00025594,3]
[386066689,1758208254556,-2615.93,0.00025595,3]
[386066690,1758208254565,-480.0,0.00025595,3]
[386066691,1758208254575,-480.0,0.00025595,3]
[386066692,1758208254584,-480.0,0.00025596,3]
[386066693,1758208254594,-480.0,0.00025598,3]
[386066694,1758208254603,-168.0,0.00025656,2]
[386066695,1758208254613,-2500.0,0.00025664,2]
[386066696,1758208254622,-2105.88314967,0.00025664,2]
[386066697,1758208254631,-168.0,0.00025692,2]
[386066698,1758208254641,-3000.0,0.00025712,2]
[386066699,1758208254650,-303.90554037,0.00025865,3]
[386066700,1758208254659,-516.5,0.00025865,3]
[386066701,1758208254669,-480.0,0.00025866,3]
[386066702,1758208254678,-480.0,0.00025866,3]
[386066703,1758208254688,-480.0,0.00025867,3]
[386066704,1758208254697,-480.0,0.00025868,3]
[386066705,1758208254706,-480.0,0.00025868,3]
[386066706,1758208254716,-480.0,0.00025868,3]
[386066707,1758208254726,-1002.14,0.00025868,3]
[386066708,1758208254736,-480.0,0.00025868,3]
[386066709,1758208254745,-507.53,0.00025868,3]
[386066710,1758208254755,-1484.25,0.00025868,3]
[386066711,1758208254764,-454.22895068,0.00025868,3]
[386066712,1758208254774,-2615.93,0.00025869,3]
[386066713,1758208254783,-480.0,0.00025869,3]
[386066714,1758208254793,-480.0,0.00025872,3]
[386066715,1758208254803,-168.0,0.00025887,2]
[386066716,1758208254812,-168.0,0.00025931,2]
[386066717,1758208254821,-168.0,0.00025938,2]
[386066718,1758208254831,-660.0,0.0002594,2]
[386066719,1758208254840,-375.31678154,0.00025968,2]
[386066720,1758208254850,-503.19520387,0.00025968,2]
[386066721,1758208254860,-168.0,0.00026039,2]
[386066722,1758208254869,-1008.93493663,0.00026069,2]
[386066723,1758208254879,-2000.0,0.00026069,2]
[386066724,1758208254888,-200.0,0.000261,7]
[386066725,1758208254898,-168.0,0.00026119,2]
[386066726,1758208254907,-1000.0,0.00026121,2]
[386066727,1758208254916,-168.0,0.00026136,2]
[386066728,1758208254928,-516.5,0.00026139,3]
[386066729,1758208254937,-480.0,0.0002614,3]
[386066730,1758208254947,-174.78,0.0002614,3]
[386066731,1758208254957,-510.32,0.00026141,3]
[386066732,1758208254967,-480.0,0.00026142,3]
[386066733,1758208254976,-480.0,0.00026142,3]
[386066734,1758208254985,-1002.14,0.00026142,3]
[386066735,1758208254995,-480.0,0.00026142,3]
[386066736,1758208255005,-507.53,0.00026142,3]
[386066737,1758208255015,-1484.25,0.00026142,3]
[386066738,1758208255024,-2615.93,0.00026143,3]
[386066739,1758208255034,-341.11,0.00026143,3]
[386066740,1758208255044,-810.67797789,0.00026145,4]
[386066741,1758208255054,-168.0,0.00026181,2]
[386066742,1758208255063,-3000.0,0.00026212,2]
[386066743,1758208255073,-4342.64238901,0.0002624,2]
[386066744,1758208255083,-500.0,0.0002626,2]
[386066745,1758208255092,-370000.0,0.0002634,2]
[386066746,1758208255101,-151.0,0.0002634,7]
[386066747,1758208255111,-153.672579,0.0002634,7]
[386066748,1758208255120,-151.0,0.0002634,7]
[386066749,1758208255130,-151.0,0.0002634,7]
[386066750,1758208255140,-151.0,0.0002634,7]
[386066751,1758208255149,-201.930903,0.0002634,7]
[386066752,1758208255159,-152.53893,0.0002634,7]
[386066753,1758208255169,-159.079139,0.0002634,7]
[386066754,1758208255178,-152.926508,0.0002634,7]
[386066755,1758208255188,-151.0,0.0002634,7]
[386066756,1758208255198,-151.0,0.0002634,7]
[386066757,1758208255207,-151.0,0.0002634,7]
[386066758,1758208255216,-151.0,0.0002634,7]
[386066759,1758208255226,-151.0,0.0002634,7]
[386066760,1758208255235,-151.0,0.0002634,7]
[386066761,1758208255245,-151.0,0.0002634,7]
[386066762,1758208255255,-151.0,0.0002634,7]
[386066763,1758208255264,-151.0,0.0002634,7]
[386066764,1758208255274,-151.0,0.0002634,7]
[386066765,1758208255284,-151.0,0.0002634,7]
[386066766,1758208255294,-151.0,0.0002634,7]
[386066767,1758208255304,-151.0,0.0002634,7]
[386066768,1758208255314,-500.0,0.00026373,2]
[386066769,1758208255323,-150.0,0.00026373,2]
[386066770,1758208255333,-720.0,0.00026408,20]
[386066771,1758208255343,-480.0,0.00026413,3]
[386066772,1758208255352,-516.5,0.00026413,3]
[386066773,1758208255362,-480.0,0.00026416,3]
[386066774,1758208255372,-480.0,0.00026416,3]
[386066775,1758208255382,-1002.14,0.00026416,3]
[386066776,1758208255464,-480.0,0.00026416,3]
[386066777,1758208255475,-507.53,0.00026416,3]
[386066778,1758208255484,-1484.25,0.00026416,3]
[386066779,1758208255494,-2615.93,0.00026417,3]
[386066780,1758208255508,-760.0,0.00026488,2]
[386066781,1758208255518,-2500.0,0.00026617,2]
[386066782,1758208255527,-1500.0,0.00026668,2]
[386066783,1758208255537,-232.01,0.00026687,3]
[386066784,1758208255547,-516.5,0.00026687,3]
[386066785,1758208255557,-480.0,0.0002669,3]
[386066786,1758208255566,-480.0,0.0002669,3]
[386066787,1758208255577,-1002.14,0.0002669,3]
[386066788,1758208255587,-480.0,0.0002669,3]
[386066789,1758208255596,-507.53,0.0002669,3]
[386066790,1758208255605,-1484.25,0.0002669,3]
[386066791,1758208255615,-2615.93,0.00026691,3]
[386066792,1758208255625,-1109.36641102,0.0002676,2]
[386066793,1758208255633,-300.0,0.00026849,5]
[386066794,1758208255643,-601.00753204,0.00026921,2]
[386066795,1758208255653,-250.0,0.00026921,2]
[386066796,1758208255662,-502.8916786,0.00026949,10]
[386066797,1758208255672,-516.5,0.00026961,3]
[386066798,1758208255681,-480.0,0.00026964,3]
[386066799,1758208255691,-480.0,0.00026964,3]
[386066800,1758208255701,-1002.14,0.00026964,3]
[386066801,1758208255711,-480.0,0.00026964,3]
[386066802,1758208255720,-507.53,0.00026964,3]
[386066803,1758208255730,-1484.25,0.00026964,3]
[386066804,1758208255739,-2615.93,0.00026965,3]
[386066805,1758208255749,-518846.43477963,0.00027,2]
[386066806,1758208257925,-0.01071291,0.00022846,3]
[386066807,1758208257938,-647.91928709,0.00022846,3]
[386066808,1758208257949,-500.0,0.0002285,2]
[386066809,1758208257958,-500.0,0.0002285,2]
[386066810,1758208257968,-372.37336776,0.0002285,2]
[386066811,1758208257978,-416.23795214,0.00022853,2]
[386066812,1758208257987,-500.0,0.00022853,2]
[386066813,1758208257997,-177.71439569,0.00022853,2]
[386066814,1758208258006,-480.0,0.00022854,3]
[386066815,1758208258016,-480.0,0.00023128,3]
[386066816,1758208258025,-888.85501502,0.00027,2]
[386066817,1758208258068,-480.0,0.00022854,3]
[386066818,1758208258078,-574.1,0.00023128,3]
[386066819,1758208258087,-217.95274215,0.00023522,2]
[386066820,1758208258097,-999.77909785,0.00027,2]
[386066821,1758208258108,-359.204792,0.00027,2]
[386066822,1758208258977,370000.0,0.00022753,2]
[386066825,1758208349425,679.96006635,0.000199,2]
[386066826,1758208349532,679.96006633,0.00021149,2]
[386066827,1758208349717,679.96006633,0.00022398,2]
[386066987,1758208532529,611.9640599,0.000199,2]
[386066988,1758208532645,611.96405969,0.00021149,2]
[386066989,1758208532749,611.96405969,0.00022398,2]
[386066991,1758208568473,380.27545136,0.00022751,2]
[386067115,1758208720040,550.76765375,0.000199,2]
[386067116,1758208720183,550.76765372,0.00021149,2]
[386067117,1758208720281,550.76765372,0.00022398,2]
[386067262,1758208795613,153.0,0.00027397,120]
[386067264,1758208808769,167.544621,0.00021851,2]
[386067267,1758208843893,332.74101994,0.0002275,2]
[386067269,1758208904281,-300.0,0.00022847,2]
[386067270,1758208904313,-904.0,0.00022848,2]
[386067271,1758208904342,-480.0,0.00022848,2]
[386067272,1758208904373,-446.68,0.00022848,3]
[386067273,1758208904506,-480.0,0.00022848,3]
[386067274,1758208904537,-480.0,0.00022848,3]
[386067275,1758208904571,-500.0,0.00022848,2]
[386067276,1758208904604,-500.0,0.00022848,2]
[386067277,1758208904636,-162.8458141,0.00022848,2]
[386067278,1758208904669,-500.0,0.00022848,2]
[386067279,1758208904800,-500.0,0.00022848,2]
[386067280,1758208904834,-500.0,0.00022848,2]
[386067281,1758208904866,-500.0,0.00022848,2]
[386067282,1758208904900,-500.0,0.00022848,2]
[386067283,1758208904936,-500.0,0.00022848,2]
[386067284,1758208904968,-500.0,0.00022848,2]
[386067285,1758208905002,-500.0,0.00022848,2]
[386067286,1758208905035,-544.18259212,0.00022848,2]
[386067287,1758208905069,-500.0,0.00022848,2]
[386067288,1758208905101,-411.64481576,0.00022848,2]
[386067289,1758208905209,-88.35518424,0.00022848,2]
[386067290,1758208905442,-44.18259212,0.00022849,2]
[386067291,1758208905456,-500.0,0.00022849,2]
[386067292,1758208905481,-88.35518424,0.00022849,2]
[386067293,1758208905499,-9823.29963152,0.00022849,2]
[386067294,1758208905514,-10000.01,0.00022849,2]
[386067295,1758208905533,-10000.01,0.00022849,2]
[386067296,1758208905552,-8806.2450745,0.00022849,2]
[386067297,1758208905561,-480.0,0.0002285,3]
[386067298,1758208905571,-480.0,0.0002285,3]
[386067299,1758208905580,-233.7649255,0.0002285,3]
[386067300,1758208912477,522.71348764,0.000199,2]
[386067301,1758208912564,522.71348761,0.00021149,2]
[386067302,1758208912666,522.71348761,0.00022398,2]
[386067303,1758208914386,-480.0,0.00022849,3]
[386067304,1758208914417,-480.0,0.00022849,3]
[386067305,1758208914447,-480.0,0.00022849,3]
[386067306,1758208914478,-480.0,0.00022849,3]
[386067307,1758208914507,-246.2350745,0.0002285,3]
[386067308,1758208914536,-484.29752728,0.0002285,3]
[386067309,1758208914565,-483.44232395,0.0002285,3]
[386067310,1758208914600,-480.0,0.0002285,3]
[386067311,1758208914627,-480.0,0.0002285,3]
[386067312,1758208914655,-480.0,0.0002285,3]
[386067313,1758208914683,-372.06014854,0.0002285,3]
[386067314,1758208914788,-107.93985146,0.0002285,3]
[386067315,1758208914819,-480.0,0.0002285,3]
[386067316,1758208914856,-480.0,0.0002285,3]
[386067317,1758208914887,-480.0,0.0002285,3]
[386067318,1758208914917,-480.0,0.0002285,3]
[386067319,1758208914951,-598.91,0.0002285,3]
[386067320,1758208914984,-480.0,0.0002285,3]
[386067321,1758208915016,-480.0,0.0002285,3]
[386067322,1758208915046,-480.0,0.0002285,3]
[386067323,1758208915077,-480.0,0.0002285,3]
[386067324,1758208915107,-426.31029708,0.0002285,3]
[386067325,1758208915277,-53.68970292,0.0002285,3]
[386067326,1758208915307,-480.0,0.0002285,2]
[386067327,1758208915338,-480.0,0.0002285,3]
[386067328,1758208915369,-480.0,0.0002285,3]
[386067329,1758208915399,-480.0,0.0002285,3]
[386067330,1758208915429,-480.0,0.0002285,3]
[386067331,1758208915559,-480.0,0.0002285,3]
[386067332,1758208915590,-469.8,0.0002285,3]
[386067333,1758208915620,-480.0,0.0002285,3]
[386067334,1758208915651,-489.74537352,0.0002285,3]
[386067335,1758208915681,-480.0,0.0002285,3]
[386067336,1758208915793,-480.0,0.0002285,3]
[386067337,1758208915824,-480.0,0.0002285,3]
[386067338,1758208915855,-485.25609804,0.0002285,3]
[386067339,1758208915883,-480.0,0.0002285,3]
[386067340,1758208915912,-480.0,0.0002285,3]
[386067341,1758208915944,-480.0,0.0002285,3]
[386067342,1758208915973,-480.0,0.0002285,3]
[386067343,1758208916002,-480.0,0.0002285,3]
[386067344,1758208916032,-480.0,0.0002285,3]
[386067345,1758208916061,-480.0,0.0002285,3]
[386067346,1758208916738,-480.0,0.0002285,3]
[386067347,1758208916755,-389.49780392,0.0002285,3]
[386067349,1758208924330,-300.0,0.00022849,2]
[386067350,1758208924369,-90.50219608,0.0002285,3]
[386067351,1758208924405,-480.0,0.0002285,3]
[386067352,1758208924441,-480.0,0.0002285,3]
[386067353,1758208924477,-559.28,0.0002285,3]
[386067354,1758208924512,-480.0,0.0002285,3]
[386067355,1758208924549,-480.0,0.0002285,3]
[386067356,1758208924583,-480.0,0.00022851,3]
[386067357,1758208924614,-508.55753923,0.00022851,3]
[386067358,1758208924649,-480.0,0.00022851,3]
[386067359,1758208924683,-486.26434182,0.00022851,3]
[386067360,1758208924809,-480.0,0.00022851,3]
[386067361,1758208924845,-481.16,0.00022851,3]
[386067362,1758208924882,-480.0,0.00022851,3]
[386067363,1758208924916,-480.0,0.00022851,3]
[386067364,1758208924948,-283.41936783,0.00022851,3]
[386067365,1758208924984,-190.74,0.00022851,3]
[386067366,1758208925019,-189.45,0.00022851,3]
[386067367,1758208925061,-532.11,0.00022851,3]
[386067368,1758208925095,-480.0,0.00022851,3]
[386067369,1758208925126,-480.0,0.00022851,3]
[386067370,1758208925160,-480.0,0.00022851,3]
[386067371,1758208925194,-406.25126434,0.00022851,3]
[386067372,1758208925344,-73.74873566,0.00022851,3]
[386067373,1758208925377,-480.0,0.00022851,3]
[386067374,1758208925410,-480.0,0.00022851,3]
[386067375,1758208925574,-480.0,0.00022851,3]
[386067376,1758208925608,-2001.89,0.00022851,3]
[386067377,1758208925639,-480.0,0.00022851,3]
[386067378,1758208925671,-480.0,0.00022851,3]
[386067379,1758208925703,-480.0,0.00022851,3]
[386067380,1758208925805,-480.0,0.00022851,3]
[386067381,1758208925836,-480.0,0.00022851,3]
[386067382,1758208925867,-480.0,0.00022851,3]
[386067383,1758208925899,-480.0,0.00022851,3]
[386067384,1758208925929,-480.0,0.00022851,3]
[386067385,1758208925959,-480.0,0.00022851,3]
[386067387,1758208929837,480.0,0.0002285,3]
[386067388,1758208938925,480.0,0.0002285,3]
[386067389,1758208941138,480.0,0.0002285,3]
[386067390,1758208954600,480.0,0.00022851,3]
[386067391,1758208960853,480.0,0.00022848,3]
[386067392,1758208961342,480.0,0.00022849,3]
[386067393,1758208963254,480.0,0.0002285,3]
[386067394,1758208964756,489.4116349,0.00022851,3]
[386067395,1758208964783,390.5983651,0.0002285,3]
[386067396,1758208964808,89.4016349,0.0002285,3]
[386067397,1758208969512,751.21,0.0002285,3]
[386067398,1758208977725,480.0,0.0002285,3]